Cogmind - Beta 13 X1 @@@ ROGUE MODE // 2023.08.06 @ 12:29:26 Player: Luna Result: Destroyed by Autobeam Turret with Autobeam Performance ------------- Evolutions (0) 0 Regions Visited (2) 400 Robots Destroyed (31) 155 Value Destroyed (589) 589 Prototype IDs (2) 40 Alien Tech Used (0) 0 Bonus (0) 0 TOTAL SCORE: 1184 Bonus ------- None Cogmind --------- Core Integrity 0/250 Matter 269/300 Energy 199/200 System Corruption 1% Temperature Cool (6) Movement Core (450) Ox8 Location -10/Subcaves Parts ------- > --- POWER (1) -------- Subdweller Power Source > --- PROPULSION (2) --- (None) > --- UTILITY (2) ------ Scrap Shield > --- WEAPON (2) ------- Subdweller Machine Gun > --- INVENTORY (5) ---- Improved Heat Sink High-capacity Storage Unit Large Matter Pod (42) Subdweller Machine Gun Grenade Launcher Peak State ------------ > --- POWER ------------ Light Nuclear Core > --- PROPULSION ------- Light Treads Light Treads > --- UTILITY ---------- High-capacity Storage Unit Light Armor Plating > --- WEAPON ----------- Medium Laser Assault Rifle > --- INVENTORY -------- Ion Engine Light Treads Light Treads Wheel Wheel Wheel Large Matter Pod Signal Interpreter Light Armor Plating Light Armor Plating Authchip [R/Combat] Authchip [R/Combat] Authchip [Propulsion] Authchip [Device] Medium Laser Medium Laser Medium Laser Grenade Launcher [Rating: 12] Favorites ----------- Power Light Nuclear Core Engine Ion Engine Power Core Light Nuclear Core Propulsion Light Treads Treads Light Treads Wheel Wheel Utility Light Armor Plating Device Disposable Heat Sink Storage High-capacity Storage Unit Protection Light Armor Plating Weapon Assault Rifle Energy Gun Medium Laser Ballistic Gun Assault Rifle Launcher Grenade Launcher Build | -11 -10 -10 ------- Run | Jun Mat Sub Slots Evolved . | . . . Power . | . . . Propulsion . | . . . Utility . | . . . Weapon . | . . . Parts Attached 27 | 6 8 13 Power 6 | 1 2 3 Engine 5 | 1 1 3 Core 1 | . 1 . Reactor . | . . . Propulsion 7 | 2 1 4 Treads 5 | 2 1 2 Leg . | . . . Wheel 2 | . . 2 Hover . | . . . Flight . | . . . Utility 8 | 1 3 4 Device 1 | . . 1 Storage 3 | 1 2 . Processor . | . . . Hackware . | . . . Protection 4 | . 1 3 Artifact . | . . . Weapon 6 | 2 2 2 Energy Gun 2 | . 1 1 Energy Cannon . | . . . Ballistic Gun 3 | 2 . 1 Ballistic Cannon . | . . . Launcher 1 | . 1 . Special Weapon . | . . . Impact Weapon . | . . . Slashing Weapon . | . . . Piercing Weapon . | . . . Special Melee Weapon . | . . . Unidentified Prototypes . | . . . Parts Lost 16 | . 1 15 Power 3 | . . 3 Propulsion 6 | . . 6 Utility 3 | . . 3 Weapon 4 | . 1 3 Highest Loss Streak 13 | . 1 13 To Critical Strikes 2 | . . 2 Average Slot Usage (%) 95 | . 98 78 Engine 6 | . 5 11 Core 7 | . 8 . Treads 24 | . 28 5 Wheel 2 | . . 11 Device 1 | . . 7 Storage 13 | . 14 12 Protection 11 | . 12 4 Energy Gun 8 | . 7 13 Ballistic Gun 17 | . 18 10 Launcher 1 | . 1 . Naked Turns . | . . . Heaviest Build 52 | 14 52 52 Greatest Support 40 | 40 40 40 Greatest Overweight (x) 8 | 4 1 8 Average Overweight (x) 1 | . . 4 Largest Inventory Capacity 20 | 8 20 20 Average Capacity 14 | 7 14 18 Most Carried 20 | 6 20 20 Average Carried 11 | 3 11 12 Final Capacity 20 | 8 20 5 Final Carried 20 | 6 20 5 Class Distribution -------------------- 100% | Mutant Dominant Class ---------------- Mutant | -10/Materials Mutant | -10/Subcaves Resources | -11 -10 -10 ----------- Run | Jun Mat Sub Matter Collected 727 | 240 399 88 Remotely . | . . . Salvage Created 866 | . 694 172 Parts 67 | . 54 13 Haulers Intercepted 2 | . 2 . Recyclers Shooed 2 | . 2 . Parts Field Recycled . | . . . Retrieved Matter . | . . . Parts Self-Destructed 17 | . . 17 Prevented . | . . . Kills | -11 -10 -10 ------- Run | Jun Mat Sub Combat Hostiles Destroyed 18 | . 12 6 Guns 11 | . 5 6 AOE 7 | . 7 . Classes Destroyed 11 | . 9 2 Worker 3 | . 3 . Builder 4 | . 4 . Tunneler 1 | . 1 . Hauler 2 | . 2 . Recycler 1 | . 1 . Operator 1 | . 1 . Watcher 1 | . 1 . Swarmer 6 | . 3 3 Grunt 9 | . 9 . Sentry 1 | . . 1 Subdweller 2 | . . 2 Best Kill Streak 9 | . 9 3 Combat Bots Only 6 | . 6 3 Max Kills in Single Turn 4 | . 4 1 Gunslinging . | . . . Exploded 2 | . 2 . Melee . | . . . Uniques/NPCs Destroyed . | . . . Combat | -11 -10 -10 -------- Run | Jun Mat Sub Damage Taken 1990 | . 397 1593 Core 252 | . 45 207 Absorbed by Shields . | . . . Core Remaining (%) 100 | 100 . . Volleys Fired 74 | . 38 36 Largest 2 | . 2 2 Hottest 100 | . 70 100 Shots Fired 130 | . 69 61 Gun 123 | . 62 61 Cannon . | . . . Launcher 7 | . 7 . Special . | . . . Kinetic 81 | . 59 22 Thermal 42 | . 3 39 Explosive 7 | . 7 . Electromagnetic . | . . . Robot Hit Streak 21 | . 10 21 Robot Miss Streak 4 | . 4 2 Penetration Max . | . . . Secondary Targets 1 | . . 1 Max Gunslinging Chain 1 | . . 1 Shots Hit Robots 93 | . 40 53 Core Hits 44 | . 35 9 Critical Kills . | . . . Critical Parts Destroyed 1 | . 1 . Critical Strikes 6 | . 3 3 Burn 5 | . 2 3 Destroy 1 | . 1 . Melee Attacks . | . . . Impact . | . . . Slashing . | . . . Piercing . | . . . Sneak Attacks . | . . . Combat Hostiles . | . . . Follow-up Attacks . | . . . Damage Inflicted 1348 | . 1065 283 Guns 778 | . 495 283 Cannons . | . . . Explosions 570 | . 570 . Melee . | . . . Ramming . | . . . Kinetic 581 | . 471 110 Thermal 197 | . 24 173 Explosive 570 | . 570 . Electromagnetic . | . . . Impact . | . . . Slashing . | . . . Piercing . | . . . Highest Corruption 1 | . 1 1 Average Corruption 1 | . 1 1 Corruption Purged . | . . . Corruption Blocked . | . . . Effects 16 | . 13 3 Message Errors 4 | . 3 1 Matter Fused 3 | . 2 1 Heat Flow Errors 2 | . 2 . Energy Discharges 3 | . 3 . Parts Fused 1 | . 1 . Misfires 1 | . 1 . Weapon Failures 2 | . 1 1 Overload Shots . | . . . Overflow Damage . | . . . Projectiles . | . . . Explosions . | . . . Melee . | . . . Knockbacks . | . . . Impact . | . . . Kinetic . | . . . Secondary . | . . . Self-Inflicted Damage 27 | . 27 . Shots 1 | . 1 . Rammed . | . . . Targets Rammed . | . . . Kicked . | . . . Crushed . | . . . Highest Temperature 243 | . 243 2 Average Temperature 52 | . 56 2 Received Heat Transfer 420 | . 171 249 Siege Activations . | . . . Robots Corrupted . | . . . Combat Hostiles . | . . . Parts Fried . | . . . Impact Corruptions . | . . . Robots Melted . | . . . Combat Hostiles . | . . . Parts Melted 3 | . 1 2 Heat Transferred 962 | . 222 740 Parts Sabotaged . | . . . Parts Stolen . | . . . Parts Stripped . | . . . Power Chain Reactions . | . . . Missiles Intercepted . | . . . Alert | -11 -10 -10 ------- Run | Jun Mat Sub Peak Influence 405 | . 405 . Initial . | . . . Average 155 | . 162 . Maximum Alert Level 2 | . 2 . Low Security (%) 66 | 100 65 . Level 1 26 | . 27 . Level 2 6 | . 6 . Level 3 . | . . . Level 4 . | . . . Level 5 . | . . . High Security . | . . . Max Security . | . . . Squads Dispatched 3 | . 3 . Investigation 1 | . 1 . Extermination . | . . . Reinforcement 2 | . 2 . Assault . | . . . Garrison . | . . . Intercept . | . . . Searches Triggered . | . . . Construction Impeded . | . . . Haulers Reinforced . | . . . Active Scanning Responses . | . . . Cargo Convoy Interrupts . | . . . Stealth | -11 -10 -10 --------- Run | Jun Mat Sub Distress Signals 1 | . 1 . Communications Jammed . | . . . Distress Signals . | . . . Times Spotted 44 | . 27 17 Peak Tracking Total 6 | . 6 5 Tactical Retreats 4 | . 2 2 Traps | -11 -10 -10 ------- Run | Jun Mat Sub Traps Triggered 2 | . 2 . Indirectly . | . . . Trap Hack Attempts . | . . . Triggered . | . . . Disarmed . | . . . Reprogrammed . | . . . Reused . | . . . Traps Extracted . | . . . Installed . | . . . Triggered . | . . . Machines | -11 -10 -10 ---------- Run | Jun Mat Sub Machines Disabled . | . . . Max in Single Turn . | . . . Machines Repaired . | . . . Machines Sabotaged . | . . . Overloaded Fab Kills . | . . . Hacking | -11 -10 -10 --------- Run | Jun Mat Sub Machines Accessed 6 | . 6 . Terminals 4 | . 4 . Fabricators . | . . . Repair Stations . | . . . Recycling Units 2 | . 2 . Scanalyzers . | . . . Garrison Access . | . . . Total Hacks 30 | . 30 . Successful 14 | . 14 . Failed 15 | . 15 . Catastrophic 1 | . 1 . Database Lockouts 1 | . 1 . Manual 22 | . 22 . Terminals 16 | . 16 . Fabricators . | . . . Repair Stations . | . . . Recycling Units 14 | . 14 . Scanalyzers . | . . . Garrison Access . | . . . Terminal Hacks 3 | . 3 . Robot Analysis 2 | . 2 . Prototype ID Bank 1 | . 1 . Fabricator Hacks . | . . . Repair Station Hacks . | . . . Recycling Unit Hacks 3 | . 3 . Retrieve Matter 1 | . 1 . Retrieve Components 2 | . 2 . Scanalyzer . | . . . Garrison Access Hacks . | . . . Unauthorized Hacks 8 | . 8 . Terminals 3 | . 3 . Botnet 3 | . 3 . Fabricators . | . . . Repair Stations . | . . . Recycling Units 5 | . 5 . Monitor 1 | . 1 . Reject 1 | . 1 . Recyclers 1 | . 1 . Mask 2 | . 2 . Scanalyzers . | . . . Garrison Access . | . . . Data Cores Recovered 1 | . 1 . Used . | . . . Hacking Detections 5 | . 5 . Full Trace Events . | . . . Feedback Events . | . . . Feedback Blocked . | . . . Robot Schematics Acquired . | . . . Robots Built . | . . . Authchips . | . . . Time . | . . . Total Robot Build Rating . | . . . Part Schematics Acquired . | . . . Parts Built . | . . . Authchips . | . . . Time . | . . . Total Part Build Rating . | . . . Parts Repaired . | . . . Time . | . . . Parts Recycled . | . . . Recycled Matter . | . . . Retrieved Matter . | . . . Retrieved Components 18 | . 18 . Parts Scanalyzed . | . . . Part Schematics Acquired . | . . . Parts Damaged . | . . . Bothacking | -11 -10 -10 ------------ Run | Jun Mat Sub Used RIF Installer . | . . . Robots Hacked . | . . . Non-combat . | . . . Combat . | . . . Robot Hacks Applied . | . . . Relay Couplers Released . | . . . Fabnet Peak Effective % . | . . . Robots Rewired . | . . . Allies Hacked . | . . . Hacks Repelled . | . . . Allies | -11 -10 -10 -------- Run | Jun Mat Sub Total Allies . | . . . Largest Group . | . . . Highest-Rated Group . | . . . Highest-Rated Ally . | . . . Total Orders . | . . . Ally Attacks . | . . . Total Damage . | . . . Kills . | . . . Allies Corrupted . | . . . Allies Melted . | . . . Intel | -11 -10 -10 ------- Run | Jun Mat Sub Robot Analysis Total 2 | . 2 . Derelict Logs Recovered . | . . . Drone Launches . | . . . Drone Recoveries . | . . . Exploration | -11 -10 -10 ------------- Run | Jun Mat Sub Turns Passed 2131 | 73 1705 353 Spaces Moved 990 | 36 806 148 Core 16 | 15 . 1 Treads 828 | 21 806 1 Legs . | . . . Wheels 146 | . . 146 Hover . | . . . Flight . | . . . Fastest Speed 50 | 50 160 110 Average Speed 182 | 162 189 151 Slowest Speed 450 | 250 240 450 Overloaded Moves . | . . . Propulsion Burnouts . | . . . Robots Hopped . | . . . Cave-ins Triggered . | . . . Exploration Rate (%) 39 | 5 98 16 Regions Visited 2 Branch Regions 1 Pre-discovered Areas . | . . . Known Exits Taken . | . . . Unknown Exits Taken 2 | 1 1 . Scrap Searched 1 | . . 1 Spaces Dug . | . . . Terrain Destroyed 40 | . 40 . Melee . | . . . Projectile . | . . . AOE 40 | . 40 . Terrain Rammed . | . . . Walls Destroyed . | . . . Machines Disabled . | . . . Actions | -11 -10 -10 --------- Run | Jun Mat Sub Total 1188 | 48 922 218 Wait 40 | . 30 10 Move 988 | 35 805 148 Hop . | . . . Pick Up 36 | 7 24 5 Fast Attach 14 | 5 5 4 Attach 11 | 1 1 9 Detach 2 | . 2 . Swap 2 | . 2 . Drop 19 | . 15 4 Fire 74 | . 38 36 Melee . | . . . Ram . | . . . Kick . | . . . Crush . | . . . Escape Stasis . | . . . Rewire . | . . . Trap . | . . . Miscellaneous 2 | . . 2 Route ------- -11/Junkyard -10/Materials (discovered 6 exits: [*Mat x3] / [*Min x2] / [*Sub]) -10/Subcaves (discovered 1 exit: [*Rec]) History --------- Turn | Location | Event 47 | -11/Junkyard | Discovered new exit (range 14) 74 | -11/Junkyard | Entered Materials 175 | -10/Materials | Discovered new exit (range 15) 287 | -10/Materials | Discovered new exit (range 16) 317 | -10/Materials | Build established: Mutant 370 | -10/Materials | Discovered new exit (range 15) 725 | -10/Materials | Central database locked down 744 | -10/Materials | Discovered new exit (range 10) 833 | -10/Materials | Discovered new exit (range 16) 1491 | -10/Materials | Discovered new exit (range 10) 1779 | -10/Materials | Entered Subcaves 1781 | -10/Subcaves | Ambushed by Subdwellers from Twisted Machinery 1807 | -10/Subcaves | Core integrity fell below 50% 1875 | -10/Subcaves | Core integrity fell below 20% 1899 | -10/Subcaves | Lost 13 parts (3p5n3u2w) 2104 | -10/Subcaves | Discovered new exit (range 16) 2132 | -10/Subcaves | Destroyed by Autobeam Turret with Autobeam Last Messages --------------- 02050_ Imp. Ion Engine fries itself beyond repair. 02050_ Lgt. Treads fries itself beyond repair. 02055_ Beam Rifle fries itself beyond repair. 02056_ Acquired Heat Sink. 02057_ Acquired 53 matter. 02104_ EXIT=FOUND 02105_ Dropped Hcp. Storage Unit. 02106_ Med. Laser destroyed. 02106_ Dropped Disposable Heat Sink. 02106_ Acquired Scrap Shield. 02109_ Scrap Shield Fragment affixed to Scrap Shield (+48). 02110_ S-10 Pest destroyed. 02117_ Dropped Heat Sink. 02117_ Acquired Hcp. Storage Unit. 02122_ Flight Unit fries itself beyond repair. 02122_ Scrap Shield Fragment affixed to Scrap Shield (+34). 02125_ Dropped Signal Interpreter. 02128_ Flight Unit fries itself beyond repair. 02131_ Acquired Grenade Launcher. 02131_ Wheel destroyed. Map ----- +----------------------------------------------------+ | ?????????????????????????????????????????????????? | | ?????????????????????????????????????????????????? | | ?????????????????????????????????????????????????? | | ?????????????????????????????????????????????????? | | ?????????????????????????????????????????????????? | | ?????????????????????????????????????????????????? | | ?????????????????????????????????????????????????? | | ?????????????????????????????????????????????????? | | ?????????????????????????????????????????????????? | | ?????????????????????????????????????????????????? | | ?????????????????????????????????????????????????? | | ?????????????????????????????????????????????????? | | ????????????????#????????????????????????????????? | | ???????????????## ???????????????????????????? #? | | ??????????????## ?????????????????????????# ? | | ??????????????? ?????????????????????????# ? | | ???????????????? ???????????####?????????# ? | | ????????????????? ????????## ?????##???# # | | ??????????????????# ????????# ????? """??# # | | ??????????????????# ???????# ????? "??# # | | ?????????????????## ##????## ##### "??# | | ?????????????????# ????# % t""??# | | ?????????????????# ##?##] %